fUST/lending_fUST_20240930
["ID","MTS","AMOUNT","RATE_DAILY","PERIOD"]
[339546776,1727687467907,-500.0,0.0001516,2]
[339546777,1727687467917,-500.0,0.0001516,2]
[339546778,1727687467926,-500.0,0.0001516,2]
[339546779,1727687467936,-500.0,0.0001516,2]
[339546780,1727687467945,-500.0,0.0001516,2]
[339546781,1727687467955,-1101.88,0.0001516,2]
[339546782,1727687467964,-500.0,0.0001516,2]
[339546783,1727687467974,-500.0,0.0001516,2]
[339546784,1727687467983,-500.0,0.0001516,2]
[339546785,1727687467993,-699.72,0.0001516,2]
[339546786,1727687468003,-613.37025803,0.0001516,2]
[339546787,1727687468012,-500.0,0.0001516,2]
[339546788,1727687468021,-544.39086559,0.0001516,2]
[339546789,1727687468031,-500.0,0.0001516,2]
[339546790,1727687468040,-500.0,0.0001516,2]
[339546791,1727687468049,-151.0,0.0001516,2]
[339546792,1727687468058,-1329.81,0.0001516,2]
[339546793,1727687468067,-500.0,0.0001516,2]
[339546794,1727687468077,-500.0,0.0001516,2]
[339546795,1727687468086,-796.32,0.0001516,2]
[339546796,1727687468096,-500.0,0.0001516,2]
[339546797,1727687468106,-500.0,0.0001516,2]
[339546798,1727687468115,-1015.89,0.0001516,2]
[339546799,1727687468125,-2650.0,0.0001516,2]
[339546800,1727687468134,-500.0,0.0001516,2]
[339546801,1727687468144,-151.0,0.0001516,2]
[339546802,1727687468154,-738.06,0.0001516,2]
[339546803,1727687468164,-1503.55,0.0001516,2]
[339546804,1727687468173,-500.0,0.0001516,2]
[339546805,1727687468182,-500.0,0.0001516,2]
[339546806,1727687468192,-151.0,0.0001516,2]
[339546807,1727687468202,-500.0,0.0001516,2]
[339546808,1727687468211,-395.21042746,0.0001516,2]
[339546809,1727687468220,-151.0,0.0001516,2]
[339546810,1727687468229,-500.0,0.00015169,2]
[339546811,1727687468239,-500.0,0.0001517,2]
[339546812,1727687468249,-580.74,0.0001517,2]
[339546813,1727687468258,-500.0,0.0001517,2]
[339546814,1727687468268,-549.71356349,0.0001517,2]
[339546815,1727687468278,-338.07691682,0.0001517,2]
[339546816,1727687468289,-500.0,0.0001517,2]
[339546817,1727687468297,-500.0,0.0001517,2]
[339546818,1727687468306,-500.0,0.0001517,2]
[339546819,1727687468315,-500.0,0.0001517,2]
[339546820,1727687468325,-655.01,0.0001517,2]
[339546821,1727687468334,-500.0,0.0001517,2]
[339546822,1727687468343,-500.0,0.0001517,2]
[339546823,1727687468353,-500.0,0.0001517,2]
[339546824,1727687468362,-995.42,0.0001517,2]
[339546825,1727687468372,-500.0,0.0001517,2]
[339546826,1727687468381,-500.0,0.0001517,2]
[339546827,1727687468390,-699.58,0.0001517,2]
[339546828,1727687468400,-500.0,0.0001517,2]
[339546829,1727687468409,-500.0,0.0001517,2]
[339546830,1727687468419,-853.05,0.0001517,2]
[339546831,1727687468429,-500.0,0.0001517,2]
[339546832,1727687468438,-500.0,0.0001517,2]
[339546833,1727687468447,-540.31,0.0001517,2]
[339546834,1727687468456,-500.0,0.0001517,2]
[339546835,1727687468466,-151.0,0.0001517,2]
[339546836,1727687468475,-176.754526,0.0001517,2]
[339546837,1727687468485,-500.0,0.0001517,2]
[339546838,1727687468494,-500.0,0.0001517,2]
[339546839,1727687468505,-500.0,0.0001517,2]
[339546840,1727687468514,-644.71,0.0001517,2]
[339546841,1727687468524,-470.22541737,0.0001517,2]
[339546842,1727687468536,-500.0,0.0001517,2]
[339546843,1727687468548,-511.46,0.0001517,2]
[339546844,1727687468558,-352.77388867,0.0001517,2]
[339546845,1727687468568,-859.91,0.0001517,2]
[339546846,1727687468577,-500.0,0.0001517,2]
[339546847,1727687468588,-500.0,0.0001517,2]
[339546848,1727687468598,-500.0,0.0001517,2]
[339546849,1727687468607,-500.0,0.0001517,2]
[339546850,1727687468618,-500.0,0.0001517,2]
[339546851,1727687468627,-500.0,0.0001517,2]
[339546852,1727687468637,-664.97,0.0001517,2]
[339546853,1727687468646,-2104.23,0.0001517,2]
[339546854,1727687468655,-501.11047376,0.0001517,2]
[339546855,1727687468665,-500.0,0.0001517,2]
[339546856,1727687468675,-500.0,0.0001517,2]
[339546857,1727687468684,-500.0,0.0001517,2]
[339546858,1727687468694,-500.0,0.0001517,2]
[339546859,1727687468703,-500.0,0.0001517,2]
[339546860,1727687468713,-537.7,0.0001517,2]
[339546861,1727687468722,-500.0,0.0001517,2]
[339546862,1727687468731,-500.0,0.0001517,2]
[339546863,1727687468740,-789.63,0.0001517,2]
[339546864,1727687468749,-500.0,0.0001517,2]
[339546865,1727687468758,-500.0,0.0001517,2]
[339546866,1727687468767,-500.0,0.0001517,2]
[339546867,1727687468777,-500.0,0.0001517,2]
[339546868,1727687468791,-500.0,0.0001517,2]
[339546869,1727687468800,-500.0,0.0001517,2]
[339546870,1727687468809,-500.0,0.0001517,2]
[339546871,1727687468818,-500.0,0.0001517,2]
[339546872,1727687468827,-500.0,0.0001517,2]
[339546873,1727687468837,-857.67,0.0001517,2]
[339546874,1727687468846,-500.0,0.0001517,2]
[339546875,1727687468856,-500.0,0.0001517,2]
[339546876,1727687468865,-500.0,0.0001517,2]
[339546877,1727687468874,-500.0,0.0001517,2]
[339546878,1727687468884,-1429.954841,0.0001517,2]
[339546879,1727687468893,-500.0,0.0001517,2]
[339546880,1727687468903,-620.33,0.0001517,2]
[339546881,1727687468912,-1429.954841,0.0001517,2]
[339546882,1727687468921,-500.0,0.0001517,2]
[339546883,1727687468930,-500.0,0.0001517,2]
[339546884,1727687468939,-500.0,0.0001517,2]
[339546885,1727687468948,-1606.42,0.0001517,2]
[339546886,1727687468957,-500.0,0.0001517,2]
[339546887,1727687468966,-252.26981,0.0001517,2]
[339546888,1727687468975,-500.0,0.0001517,2]
[339546889,1727687468984,-500.0,0.0001517,2]
[339546890,1727687468993,-500.0,0.0001517,2]
[339546891,1727687469003,-252.26981,0.0001517,2]
[339546892,1727687469012,-635.52,0.0001517,2]
[339546893,1727687469022,-282.134629,0.0001517,2]
[339546894,1727687469033,-1407.08,0.0001517,2]
[339546895,1727687469042,-282.134629,0.0001517,2]
[339546896,1727687469051,-278.812365,0.0001517,2]
[339546897,1727687469061,-500.0,0.0001517,2]
[339546898,1727687469070,-500.0,0.0001517,2]
[339546899,1727687469079,-278.812365,0.0001517,2]
[339546900,1727687469088,-500.0,0.0001517,2]
[339546901,1727687469098,-500.0,0.0001517,2]
[339546902,1727687469107,-510.34409366,0.0001517,2]
[339546903,1727687469116,-500.0,0.0001517,2]
[339546904,1727687469125,-500.0,0.0001517,2]
[339546905,1727687469134,-500.0,0.0001517,2]
[339546906,1727687469143,-500.0,0.0001517,2]
[339546907,1727687469153,-500.0,0.0001517,2]
[339546908,1727687469163,-1616.1,0.0001517,2]
[339546909,1727687469172,-500.0,0.0001517,2]
[339546910,1727687469182,-500.0,0.0001517,2]
[339546911,1727687469192,-500.0,0.0001517,2]
[339546912,1727687469201,-451.34463962,0.0001517,2]
[339546913,1727687469211,-875.59,0.0001517,2]
[339546914,1727687469222,-500.0,0.0001517,2]
[339546915,1727687469231,-500.0,0.0001517,2]
[339546916,1727687469241,-1251.42,0.0001517,2]
[339546917,1727687469251,-500.0,0.0001517,2]
[339546918,1727687469260,-500.0,0.0001517,2]
[339546919,1727687469270,-500.0,0.0001517,2]
[339546920,1727687469280,-500.0,0.0001517,2]
[339546921,1727687469290,-486.90083493,0.0001517,2]
[339546922,1727687469300,-500.0,0.0001517,2]
[339546923,1727687469309,-500.0,0.0001517,2]
[339546924,1727687469319,-500.0,0.0001517,2]
[339546925,1727687469328,-500.0,0.0001517,2]
[339546926,1727687469338,-500.0,0.0001517,2]
[339546927,1727687469347,-500.0,0.0001517,2]
[339546928,1727687469357,-786.91,0.0001517,2]
[339546929,1727687469366,-500.0,0.0001517,2]
[339546930,1727687469376,-500.0,0.0001517,2]
[339546931,1727687469385,-500.0,0.0001517,2]
[339546932,1727687469395,-500.0,0.0001517,2]
[339546933,1727687469404,-500.0,0.0001517,2]
[339546934,1727687469413,-885.95,0.0001517,2]
[339546935,1727687469423,-500.0,0.0001517,2]
[339546936,1727687469432,-500.0,0.0001517,2]
[339546937,1727687469443,-500.0,0.0001517,2]
[339546938,1727687469453,-1111.23,0.0001517,2]
[339546939,1727687469463,-500.0,0.0001517,2]
[339546940,1727687469473,-2658.86,0.0001517,2]
[339546941,1727687469482,-500.0,0.0001517,2]
[339546942,1727687469491,-641.4,0.0001517,2]
[339546943,1727687469500,-500.0,0.0001517,2]
[339546944,1727687469509,-500.0,0.0001517,2]
[339546945,1727687469519,-500.0,0.0001517,2]
[339546946,1727687469528,-500.0,0.0001517,2]
[339546947,1727687469542,-500.0,0.0001517,2]
[339546948,1727687469552,-609.66513042,0.0001517,2]
[339546949,1727687469561,-500.0,0.0001517,2]
[339546950,1727687469571,-1323.68,0.0001517,2]
[339546951,1727687469580,-533.13,0.0001517,2]
[339546952,1727687469590,-291.15025011,0.0001517,2]
[339546953,1727687469599,-500.0,0.0001517,2]
[339546954,1727687469609,-500.0,0.0001517,2]
[339546955,1727687469619,-500.0,0.0001517,2]
[339546956,1727687469629,-431.21938142,0.0001517,2]
[339546957,1727687469638,-500.0,0.0001517,2]
[339546958,1727687469647,-500.0,0.0001517,2]
[339546959,1727687469657,-500.0,0.0001517,2]
[339546960,1727687469667,-521.26,0.0001517,2]
[339546961,1727687469676,-500.0,0.0001517,2]
[339546962,1727687469686,-2372.4,0.0001517,2]
[339546963,1727687469696,-500.0,0.0001517,2]
[339546964,1727687469706,-500.0,0.0001517,2]
[339546965,1727687469716,-205.96131513,0.0001517,2]
[339546966,1727687469726,-500.0,0.0001517,2]
[339546967,1727687469735,-1082.78,0.0001517,2]
[339546968,1727687469745,-500.0,0.0001517,2]
[339546969,1727687469754,-500.0,0.0001517,2]
[339546970,1727687469763,-520.65906082,0.0001517,2]
[339546971,1727687469772,-500.0,0.0001517,2]
[339546972,1727687469782,-500.0,0.0001517,2]
[339546973,1727687469791,-500.0,0.0001517,2]
[339546974,1727687469801,-500.0,0.0001517,2]
[339546975,1727687469810,-500.0,0.0001517,2]
[339546976,1727687469820,-500.0,0.0001517,2]
[339546977,1727687469829,-1349.3,0.0001517,2]
[339546978,1727687469839,-535.17,0.0001517,2]
[339546979,1727687469849,-500.0,0.0001517,2]
[339546980,1727687469858,-546.45,0.0001517,2]
[339546981,1727687469868,-500.0,0.0001517,2]
[339546982,1727687469878,-235.01822665,0.0001517,2]
[339546983,1727687469887,-500.0,0.0001517,2]
[339546984,1727687469897,-500.0,0.0001517,2]
[339546985,1727687469906,-151.0,0.00015171,2]
[339546986,1727687469916,-387.980848,0.00015171,2]
[339546987,1727687469926,-387.980848,0.00015171,2]
[339546988,1727687469935,-480.91879794,0.00015172,2]
[339546989,1727687469945,-677.77,0.00015172,2]
[339546990,1727687469955,-500.0,0.00015172,2]
[339546991,1727687469965,-631.29,0.00015172,2]
[339546992,1727687469974,-500.0,0.00015172,2]
[339546993,1727687469984,-1276.08,0.00015172,2]
[339546994,1727687469993,-1965.17,0.00015172,2]
[339546995,1727687470003,-1201.09,0.00015172,2]
[339546996,1727687470012,-412.71033337,0.00015172,2]
[339546997,1727687470022,-500.0,0.00015172,2]
[339546998,1727687470032,-610.86,0.00015172,2]
[339546999,1727687470042,-500.0,0.00015172,2]
[339547000,1727687470051,-536.73,0.00015172,2]
[339547001,1727687470060,-374.32028676,0.00015172,2]
[339547002,1727687470070,-1718.47,0.00015172,2]
[339547003,1727687470079,-2200.03,0.00015172,2]
[339547004,1727687470088,-500.0,0.00015172,2]
[339547005,1727687470098,-500.0,0.00015172,2]
[339547006,1727687470107,-500.0,0.00015172,2]
[339547007,1727687470117,-500.0,0.00015172,2]
[339547008,1727687470127,-500.0,0.00015172,2]
[339547009,1727687470137,-494.87,0.00015172,2]
[339547010,1727687470146,-500.0,0.00015172,2]
[339547011,1727687470156,-1065.82,0.00015172,2]
[339547012,1727687470165,-1182.31,0.00015172,2]
[339547013,1727687470176,-151.0,0.00015172,2]
[339547014,1727687470185,-259.982315,0.00015172,2]
[339547015,1727687470195,-259.982315,0.00015172,2]
[339547016,1727687470205,-552.649123,0.00015172,2]
[339547017,1727687470215,-151.0,0.00015172,2]
[339547018,1727687470225,-153.850686,0.00015172,2]
[339547019,1727687470235,-552.649123,0.00015172,2]
[339547020,1727687470245,-153.850686,0.00015172,2]
[339547021,1727687470255,-151.0,0.00015172,2]
[339547022,1727687470266,-151.0,0.00015172,2]
[339547023,1727687470275,-191.029775,0.00015172,2]
[339547024,1727687470286,-329.929165,0.00015172,2]
[339547025,1727687470295,-329.929165,0.00015172,2]
[339547026,1727687470305,-2080.472593,0.00015172,2]
[339547027,1727687470316,-2080.472593,0.00015172,2]
[339547028,1727687470326,-151.0,0.00015172,2]
[339547029,1727687470336,-151.0,0.00015172,2]
[339547030,1727687470346,-151.0,0.00015172,2]
[339547031,1727687470355,-151.0,0.00015172,2]
[339547032,1727687470365,-896.122989,0.00015172,2]
[339547033,1727687470375,-896.122989,0.00015172,2]
[339547034,1727687470384,-500.0,0.00015173,2]
[339547035,1727687470394,-150.0,0.00015173,2]
[339547036,1727687470404,-3470.104961,0.00015179,2]
[339547037,1727687470414,-2401.3014,0.00015179,2]
[339547038,1727687470424,-500.0,0.00015181,2]
[339547039,1727687470434,-500.0,0.00015181,2]
[339547040,1727687470443,-500.0,0.00015181,2]
[339547041,1727687470453,-500.0,0.00015181,2]
[339547042,1727687470463,-500.0,0.00015181,2]
[339547043,1727687470473,-500.0,0.00015181,2]
[339547044,1727687470483,-500.0,0.00015181,2]
[339547045,1727687470493,-500.0,0.00015181,2]
[339547046,1727687470504,-573.36,0.00015181,2]
[339547047,1727687470514,-558.62,0.00015181,2]
[339547048,1727687470524,-785.68,0.00015181,2]
[339547049,1727687470534,-500.0,0.00015181,2]
[339547050,1727687470547,-500.0,0.00015181,2]
[339547051,1727687470557,-500.0,0.00015182,2]
[339547052,1727687470567,-500.0,0.00015182,2]
[339547053,1727687470577,-500.0,0.00015182,2]
[339547054,1727687470587,-553.57,0.00015182,2]
[339547055,1727687470597,-500.0,0.00015182,2]
[339547056,1727687470606,-500.0,0.00015182,2]
[339547057,1727687470617,-500.0,0.00015182,2]
[339547058,1727687470627,-500.0,0.00015182,2]
[339547059,1727687470637,-343.04299885,0.00015182,2]
[339547060,1727687470646,-500.0,0.00015182,2]
[339547061,1727687470656,-500.0,0.00015182,2]
[339547062,1727687470665,-597.01,0.00015182,2]
[339547063,1727687470675,-500.0,0.00015182,2]
[339547064,1727687470684,-500.0,0.00015182,2]
[339547065,1727687470694,-500.0,0.00015182,2]
[339547066,1727687470704,-541.95,0.00015182,2]
[339547067,1727687470714,-500.0,0.00015182,2]
[339547068,1727687470723,-500.0,0.00015182,2]
[339547069,1727687470733,-500.0,0.00015182,2]
[339547070,1727687470743,-587.89078452,0.00015182,2]
[339547071,1727687470752,-500.0,0.00015182,2]
[339547072,1727687470761,-500.0,0.00015182,2]
[339547073,1727687470771,-500.0,0.00015182,2]
[339547074,1727687470780,-1108.02,0.00015182,2]
[339547075,1727687470791,-1806.28,0.00015182,2]
[339547076,1727687470800,-500.0,0.00015182,2]
[339547077,1727687470810,-500.0,0.00015182,2]
[339547078,1727687470820,-500.0,0.00015182,2]
[339547079,1727687470830,-500.0,0.00015182,2]
[339547080,1727687470839,-500.0,0.00015182,2]
[339547081,1727687470849,-501.45,0.00015182,2]
[339547082,1727687470859,-500.0,0.00015182,2]
[339547083,1727687470869,-500.0,0.00015182,2]
[339547084,1727687470878,-500.0,0.00015182,2]
[339547085,1727687470888,-638.95,0.00015182,2]
[339547086,1727687470898,-151.0,0.00015182,2]
[339547087,1727687470907,-873.0,0.00015182,2]
[339547088,1727687470917,-500.0,0.00015182,2]
[339547089,1727687470927,-500.0,0.00015182,2]
[339547090,1727687470937,-500.0,0.00015182,2]
[339547091,1727687470947,-500.0,0.00015182,2]
[339547092,1727687470956,-505.94480275,0.00015182,2]
[339547093,1727687470966,-500.0,0.00015182,2]
[339547094,1727687470976,-500.0,0.00015182,2]
[339547095,1727687470985,-500.0,0.00015182,2]
[339547096,1727687470995,-500.0,0.00015182,2]
[339547097,1727687471004,-500.0,0.00015182,2]
[339547098,1727687471015,-781.36,0.00015182,2]
[339547099,1727687471025,-500.0,0.00015182,2]
[339547100,1727687471035,-500.0,0.00015182,2]
[339547101,1727687471044,-375.6827222,0.00015182,2]
[339547102,1727687471054,-500.0,0.00015182,2]
[339547103,1727687471063,-500.0,0.00015182,2]
[339547104,1727687471073,-500.0,0.00015182,2]
[339547105,1727687471083,-500.0,0.00015182,2]
[339547106,1727687471093,-500.0,0.00015182,2]
[339547107,1727687471102,-597.98,0.00015182,2]
[339547108,1727687471112,-500.0,0.00015182,2]
[339547109,1727687471122,-500.0,0.00015182,2]
[339547110,1727687471131,-2091.87,0.00015182,2]
[339547111,1727687471142,-503.74,0.00015182,2]
[339547112,1727687471151,-500.0,0.00015182,2]
[339547113,1727687471161,-765.61,0.00015182,2]
[339547114,1727687471172,-1444.57,0.00015182,2]
[339547115,1727687471182,-500.0,0.00015182,2]
[339547116,1727687471191,-500.0,0.00015182,2]
[339547117,1727687471200,-500.0,0.00015182,2]
[339547118,1727687471210,-1993.848234,0.00015182,2]
[339547119,1727687471219,-1993.848234,0.00015182,2]
[339547120,1727687471229,-500.0,0.00015182,2]
[339547121,1727687471239,-1516.72,0.00015182,2]
[339547122,1727687471249,-500.0,0.00015182,2]
[339547123,1727687471258,-500.0,0.00015182,2]
[339547124,1727687471268,-500.0,0.00015182,2]
[339547125,1727687471278,-1115.41,0.00015182,2]
[339547126,1727687471289,-500.0,0.00015182,2]
[339547127,1727687471298,-560.49,0.00015182,2]
[339547128,1727687471308,-500.0,0.00015182,2]
[339547129,1727687471318,-500.0,0.00015182,2]
[339547130,1727687471328,-750.34,0.00015182,2]
[339547131,1727687471338,-500.0,0.00015182,2]
[339547132,1727687471347,-1915.62,0.00015182,2]
[339547133,1727687471357,-501.62,0.00015182,2]
[339547134,1727687471367,-500.0,0.00015182,2]
[339547135,1727687471377,-151.0,0.00015182,2]
[339547136,1727687471387,-500.0,0.00015182,2]
[339547137,1727687471628,-500.0,0.00015182,2]
[339547138,1727687471638,-500.0,0.00015182,2]
[339547139,1727687471649,-500.0,0.00015182,2]
[339547140,1727687471658,-500.0,0.00015182,2]
[339547141,1727687471668,-500.0,0.00015182,2]
[339547142,1727687471678,-500.0,0.00015182,2]
[339547143,1727687471687,-500.0,0.00015182,2]
[339547144,1727687471697,-646.26,0.00015182,2]
[339547145,1727687471707,-500.0,0.00015182,2]
[339547146,1727687471722,-722.45,0.00015182,2]
[339547147,1727687471732,-500.0,0.00015182,2]
[339547148,1727687471742,-500.0,0.00015182,2]
[339547149,1727687471752,-500.0,0.00015182,2]
[339547150,1727687471762,-641.77,0.00015182,2]
[339547151,1727687471772,-500.0,0.00015182,2]
[339547152,1727687471782,-500.0,0.00015182,2]
[339547153,1727687471793,-500.0,0.00015182,2]
[339547154,1727687471803,-500.0,0.00015182,2]
[339547155,1727687471813,-500.0,0.00015182,2]
[339547156,1727687471822,-500.0,0.00015182,2]
[339547157,1727687471832,-500.0,0.00015182,2]
[339547158,1727687471842,-527.54,0.00015182,2]
[339547159,1727687471852,-500.0,0.00015182,2]
[339547160,1727687471861,-1284.23,0.00015182,2]
[339547161,1727687471871,-500.0,0.00015182,2]
[339547162,1727687471880,-617.52,0.00015182,2]
[339547163,1727687471890,-500.0,0.00015182,2]
[339547164,1727687471900,-500.0,0.00015182,2]
[339547165,1727687471909,-500.0,0.00015182,2]
[339547166,1727687471919,-1429.954841,0.00015182,2]
[339547167,1727687471928,-500.0,0.00015182,2]
[339547168,1727687471938,-500.0,0.00015182,2]
[339547169,1727687471948,-1429.954841,0.00015182,2]
[339547170,1727687471959,-500.0,0.00015182,2]
[339547171,1727687471969,-500.0,0.00015182,2]
[339547172,1727687471979,-500.0,0.00015182,2]
[339547173,1727687471989,-500.0,0.00015182,2]
[339547174,1727687471998,-500.0,0.00015182,2]
[339547175,1727687472008,-562.98,0.00015182,2]
[339547176,1727687472018,-587.64,0.00015182,2]
[339547177,1727687472028,-1067.55,0.00015182,2]
[339547178,1727687472039,-252.26981,0.00015182,2]
[339547179,1727687472049,-252.26981,0.00015182,2]
[339547180,1727687472059,-282.134629,0.00015182,2]
[339547181,1727687472068,-1596.86,0.00015182,2]
[339547182,1727687472079,-278.812365,0.00015182,2]
[339547183,1727687472088,-282.134629,0.00015182,2]
[339547184,1727687472098,-552.09,0.00015182,2]
[339547185,1727687472107,-278.812365,0.00015182,2]
[339547186,1727687472117,-500.0,0.00015182,2]
[339547187,1727687472127,-625.67774473,0.00015182,2]
[339547188,1727687472136,-500.0,0.00015182,2]
[339547189,1727687472146,-500.0,0.00015182,2]
[339547190,1727687472156,-895.63,0.00015182,2]
[339547191,1727687472166,-500.0,0.00015182,2]
[339547192,1727687472175,-500.0,0.00015182,2]
[339547193,1727687472185,-500.0,0.00015182,2]
[339547194,1727687472194,-500.0,0.00015182,2]
[339547195,1727687472204,-259.982315,0.00015182,2]
[339547196,1727687472214,-500.0,0.00015182,2]
[339547197,1727687472223,-259.982324,0.00015182,2]
[339547198,1727687472233,-514.1889292,0.00015182,2]
[339547199,1727687472243,-500.0,0.00015182,2]
[339547200,1727687472253,-517.74,0.00015182,2]
[339547201,1727687472263,-500.0,0.00015182,2]
[339547202,1727687472273,-500.0,0.00015182,2]
[339547203,1727687472283,-500.0,0.00015182,2]
[339547204,1727687472295,-1433.46,0.00015182,2]
[339547205,1727687472305,-552.649123,0.00015182,2]
[339547206,1727687472316,-155.756925,0.00015182,2]
[339547207,1727687472325,-153.850686,0.00015182,2]
[339547208,1727687472335,-552.649131,0.00015182,2]
[339547209,1727687472344,-632.02,0.00015182,2]
[339547210,1727687472354,-153.850693,0.00015182,2]
[339547211,1727687472364,-500.0,0.00015182,2]
[339547212,1727687472374,-151.0,0.00015182,2]
[339547213,1727687472384,-500.0,0.00015182,2]
[339547214,1727687472394,-151.0,0.00015182,2]
[339547215,1727687472403,-2266.38,0.00015182,2]
[339547216,1727687472413,-522.0828032,0.00015182,2]
[339547217,1727687472423,-503.32,0.00015182,2]
[339547218,1727687472432,-329.929165,0.00015182,2]
[339547219,1727687472442,-329.929165,0.00015182,2]
[339547220,1727687472452,-2080.472593,0.00015182,2]
[339547221,1727687472461,-2080.472593,0.00015182,2]
[339547222,1727687472471,-151.0,0.00015182,2]
[339547223,1727687472481,-277.215642,0.00015182,2]
[339547224,1727687472491,-151.0,0.00015182,2]
[339547225,1727687472501,-233.477535,0.00015182,2]
[339547226,1727687472510,-500.0,0.00015183,2]
[339547227,1727687472520,-192.66621235,0.00015183,2]
[339547228,1727687472530,-476.45416667,0.00015183,2]
[339547229,1727687472540,-503.71532596,0.00015183,2]
[339547230,1727687472552,-500.0,0.00015183,2]
[339547231,1727687472561,-500.0,0.00015183,2]
[339547232,1727687472571,-500.0,0.00015183,2]
[339547233,1727687472581,-500.0,0.00015183,2]
[339547234,1727687472590,-500.0,0.00015183,2]
[339547235,1727687472600,-500.0,0.00015183,2]
[339547236,1727687472611,-500.0,0.00015183,2]
[339547237,1727687472622,-500.0,0.00015183,2]
[339547238,1727687472631,-512.93232256,0.00015183,2]
[339547239,1727687472641,-500.0,0.00015183,2]
[339547240,1727687472651,-500.0,0.00015183,2]
[339547241,1727687472660,-500.0,0.00015183,2]
[339547242,1727687472670,-500.0,0.00015183,2]
[339547243,1727687472679,-151.0,0.00015194,2]
[339547244,1727687472689,-151.0,0.00015194,2]
[339547245,1727687472699,-387.980848,0.00015194,2]
[339547246,1727687472708,-387.980848,0.00015194,2]
[339547247,1727687472719,-151.0,0.00015199,2]
[339547248,1727687472729,-71098.51185126,0.000152,2]
[339547249,1727687472739,-150.0,0.000152,2]
[339547250,1727687472748,-150.0,0.000152,2]
[339547251,1727687472757,-151.0,0.000152,2]
[339547252,1727687472767,-1148.19603961,0.000152,2]
[339547253,1727687472777,-151.0,0.000152,2]
[339547254,1727687472786,-1993.848234,0.000152,2]
[339547255,1727687472807,-1993.848234,0.000152,2]
[339547256,1727687472817,-252.26981,0.000152,2]
[339547257,1727687472827,-252.269809,0.000152,2]
[339547258,1727687472837,-278.812365,0.000152,2]
[339547259,1727687472847,-278.812372,0.000152,2]
[339547260,1727687472856,-151.0,0.000152,2]
[339547261,1727687472866,-151.0,0.000152,2]
[339547262,1727687472876,-151.0,0.000152,2]
[339547263,1727687472885,-151.0,0.000152,2]
[339547264,1727687472895,-896.122989,0.000152,2]
[339547265,1727687472904,-896.122989,0.000152,2]
[339547266,1727687472914,-500.0,0.00015202,2]
[339547267,1727687472924,-3200.0,0.00015253,2]
[339547268,1727687472934,-153.044,0.00015253,2]
[339547269,1727687472944,-800.0,0.00015285,2]
[339547270,1727687472954,-500.0,0.000153,2]
[339547271,1727687472964,-2468.88,0.000153,2]
[339547272,1727687472973,-163.641933,0.00015302,2]
[339547273,1727687472983,-265.0,0.0001531,2]
[339547274,1727687472992,-1600.867601,0.00015319,2]
[339547275,1727687473002,-151.0,0.00015319,2]